[Event "8th RTU Open 2018"]
[Site "Riga"]
[Date "2018.08.11"]
[Round "8"]
[White "Pogosyan, Stefan"]
[Black "Gorodetzky, Matan"]
[Result "1-0"]
[ECO "D34"]
[WhiteElo "2331"]
[BlackElo "2231"]
[Annotator "NA"]
[PlyCount "79"]
[EventDate "2018.08.06"]
[EventType "swiss"]
[EventCountry "LAT"]
[SourceTitle "playchess.com"]
[Source "ChessBase"]
[SourceQuality "1"]
[TimeControl "5400+30"]

1. Nf3 {[%emt 0:00:00]} d5 {[%emt 0:00:00]} 2. g3 {[%emt 0:00:00]} e6 {[%emt 0:00:00]} 3. Bg2 {[%emt 0:00:00]} Nf6 {[%emt 0:00:10]} 4. O-O {[%emt 0:00:11]} c5 {[%emt 0:01:25]} 5. c4 {[%emt 0:00:12]} Nc6 {[%emt 0:00:43]} 6. d4 {[%emt 0:00:14]} Be7 {[%emt 0:00:27]} 7. Nc3 {[%emt 0:06:22]} O-O {[%emt 0:00:21]} 8. cxd5 {[%emt 0:06:28]} exd5 {[%emt 0:00:06]} 9. dxc5 {[%emt 0:00:05]} Bxc5 {[%emt 0:00:04]} 10. Bg5 {[%emt 0:03:19]} d4 {[%emt 0:00:07]} 11. Bxf6 {[%emt 0:03:12]} Qxf6 {[%emt 0:03:52]} 12. Ne4 {[%emt 0:00:07]} Qe7 {[%emt 0:00:09]} 13. Nxc5 {[%emt 0:00:11]} Qxc5 {[%emt 0:00:01]} 14. Rc1 {[%emt 0:02:32]} Qb6 {[%emt 0:03:50]} 15. Qd2 {[%emt 0:05:42]} Bg4 {[%emt 0:05:39]} 16. Rfd1 {[%emt 0:01:31]} Rad8 {[%emt 0:02:44]} 17. h3 {[%emt 0:06:33]} Bxf3 {[%emt 0:21:26]} 18. Bxf3 {[%emt 0:00:56]} Ne5 {[%emt 0:00:11]} 19. Bg2 {[%emt 0:01:55]} Rfe8 {[%emt 0:10:42]} 20. Kh2 {[%emt 0:12:01]} h6 {[%emt 0:09:00]} 21. b4 {[%emt 0:04:25]} d3 {[%emt 0:13:02]} 22. e3 {[%emt 0:01:08]} Qa6 {[%emt 0:00:35]} 23. Rc5 {[%emt 0:07:10]} b5 {[%emt 0:00:43]} 24. Qc3 {[%emt 0:08:03]} Qf6 {[%emt 0:00:50]} 25. Kh1 {[%emt 0:04:32]} Nc4 {[%emt 0:11:12]} 26. Qxf6 {[%emt 0:00:38]} gxf6 {[%emt 0:00:03]} 27. Bf1 {[%emt 0:00:28]} Ne5 {[%emt 0:09:19]} 28. Rxb5 {[%emt 0:04:13]} Rb8 {[%emt 0:00:02]} 29. Rxb8 {[%emt 0:05:10]} Rxb8 {[%emt 0:00:01]} 30. a3 {[%emt 0:00:01]} Rd8 {[%emt 0:01:04]} 31. Kg2 {[%emt 0:02:29]} Kf8 {[%emt 0:02:22]} 32. f4 {[%emt 0:03:32]} Nc4 {[%emt 0:00:01]} 33. Kf3 {[%emt 0:00:12]} Ke7 {[%emt 0:00:47]} 34. Rxd3 {[%emt 0:03:08]} Nd2+ {[%emt 0:00:10]} 35. Kg2 {[%emt 0:00:24]} Nb1 {[%emt 0:00:21]} 36. Rxd8 {[%emt 0:01:10]} Kxd8 {[%emt 0:00:01]} 37. Bd3 {[%emt 0:00:01]} Nxa3 {[%emt 0:00:09]} 38. Kf3 {[%emt 0:00:45]} f5 {[%emt 0:00:02]} 39. e4 {[%emt 0:01:33]} Ke7 {[%emt 0:00:13]} 40. exf5 {[%emt 0:00:09]} 1-0

[Event "8th RTU Open 2018"]
[Site "Riga"]
[Date "2018.08.11"]
[Round "8"]
[White "Krykun, Yuriy"]
[Black "Vicas, Marijus"]
[Result "1/2-1/2"]
[ECO "A14"]
[WhiteElo "2325"]
[BlackElo "2186"]
[Annotator "NA"]
[PlyCount "114"]
[EventDate "2018.08.06"]
[EventType "swiss"]
[EventCountry "LAT"]
[SourceTitle "playchess.com"]
[Source "ChessBase"]
[SourceQuality "1"]
[TimeControl "5400+30"]

1. Nf3 {[%emt 0:00:00]} Nf6 {[%emt 0:02:48]} 2. c4 {[%emt 0:00:00]} e6 {[%emt 0:00:24]} 3. g3 {[%emt 0:00:00]} d5 {[%emt 0:00:17]} 4. Bg2 {[%emt 0:00:00]} Be7 {[%emt 0:01:35]} 5. O-O {[%emt 0:01:21]} O-O {[%emt 0:00:37]} 6. b3 {[%emt 0:00:57]} c5 {[%emt 0:02:04]} 7. Bb2 {[%emt 0:00:12]} Nc6 {[%emt 0:00:20]} 8. cxd5 {[%emt 0:01:32]} Nxd5 {[%emt 0:07:26]} 9. d4 {[%emt 0:00:07]} cxd4 {[%emt 0:02:18]} 10. Nxd4 {[%emt 0:00:01]} Nxd4 {[%emt 0:02:50]} 11. Qxd4 {[%emt 0:00:10]} Bf6 {[%emt 0:01:38]} 12. Qd2 {[%emt 0:01:04]} Bxb2 {[%emt 0:02:10]} 13. Qxb2 {[%emt 0:00:08]} Qf6 {[%emt 0:00:10]} 14. Qxf6 {[%emt 0:00:44]} Nxf6 {[%emt 0:00:04]} 15. Nc3 {[%emt 0:05:14]} Rb8 {[%emt 0:01:30]} 16. Rfd1 {[%emt 0:02:22]} Bd7 {[%emt 0:07:16]} 17. Rd6 {[%emt 0:03:33]} Rfc8 {[%emt 0:02:03]} 18. Ne4 {[%emt 0:01:16]} Nxe4 {[%emt 0:08:35]} 19. Rxd7 {[%emt 0:00:38]} Nc5 {[%emt 0:00:04]} 20. Rd4 {[%emt 0:01:03]} a5 {[%emt 0:07:21]} 21. Rc1 {[%emt 0:04:13]} Kf8 {[%emt 0:06:07]} 22. Rc3 {[%emt 0:08:37]} Ke7 {[%emt 0:03:59]} 23. Rg4 {[%emt 0:05:57]} g6 {[%emt 0:00:53]} 24. Rh4 {[%emt 0:00:05]} h5 {[%emt 0:00:08]} 25. Rhc4 {[%emt 0:03:00]} b6 {[%emt 0:01:25]} 26. a3 {[%emt 0:00:43]} Rd8 {[%emt 0:00:41]} 27. Bc6 {[%emt 0:03:03]} Rd2 {[%emt 0:06:13]} 28. Bf3 {[%emt 0:11:48]} Rb2 {[%emt 0:06:06]} 29. b4 {[%emt 0:00:57]} axb4 {[%emt 0:02:38]} 30. Rxb4 {[%emt 0:00:05]} Rxb4 {[%emt 0:00:26]} 31. axb4 {[%emt 0:00:01]} Nd7 {[%emt 0:05:25]} 32. Rc7 {[%emt 0:04:31]} Kd8 {[%emt 0:01:45]} 33. Ra7 {[%emt 0:01:06]} Rc8 {[%emt 0:00:04]} 34. b5 {[%emt 0:06:07]} Rc5 {[%emt 0:01:01]} 35. Kg2 {[%emt 0:07:35]} Ne5 {[%emt 0:02:38]} 36. Bc6 {[%emt 0:02:08]} Nxc6 {[%emt 0:00:10]} 37. bxc6 {[%emt 0:00:01]} f5 {[%emt 0:04:36]} 38. Rg7 {[%emt 0:02:05]} Rxc6 {[%emt 0:01:39]} 39. Rxg6 {[%emt 0:00:15]} b5 {[%emt 0:00:29]} 40. e4 {[%emt 0:05:14]} Kc7 {[%emt 0:06:38]} 41. exf5 {[%emt 0:00:29]} exf5 {[%emt 0:00:08]} 42. Rg7+ {[%emt 0:07:27]} Kd6 {[%emt 0:04:14]} 43. Rb7 {[%emt 0:01:48]} Kc5 {[%emt 0:01:11]} 44. Rf7 {[%emt 0:00:23]} b4 {[%emt 0:00:04]} 45. Rxf5+ {[%emt 0:00:03]} Kc4 {[%emt 0:00:02]} 46. Rxh5 {[%emt 0:07:04]} b3 {[%emt 0:00:04]} 47. Rh8 {[%emt 0:00:15]} Rb6 {[%emt 0:01:04]} 48. Rc8+ {[%emt 0:01:03]} Kd3 {[%emt 0:00:02]} 49. Rd8+ {[%emt 0:00:13]} Kc2 {[%emt 0:00:24]} 50. Rc8+ {[%emt 0:00:14]} Kd1 {[%emt 0:00:30]} 51. Rd8+ {[%emt 0:00:22]} Kc1 {[%emt 0:00:03]} 52. Rc8+ {[%emt 0:00:06]} Kb1 {[%emt 0:01:52]} 53. h4 {[%emt 0:02:18]} b2 {[%emt 0:00:02]} 54. h5 {[%emt 0:00:31]} Ka1 {[%emt 0:01:21]} 55. Ra8+ {[%emt 0:00:06]} Kb1 {[%emt 0:00:03]} 56. Rc8 {[%emt 0:00:09]} Ka1 {[%emt 0:00:47]} 57. Ra8+ {[%emt 0:00:16]} Kb1 {[%emt 0:00:04]} 1/2-1/2

[Event "8th RTU Open 2018"]
[Site "Riga"]
[Date "2018.08.11"]
[Round "8"]
[White "Mishuchkov, Nikolai Mikhailovic"]
[Black "Gorodetzky, David"]
[Result "0-1"]
[ECO "D47"]
[WhiteElo "2307"]
[BlackElo "2451"]
[Annotator "RC"]
[PlyCount "147"]
[EventDate "2018.08.06"]
[EventType "swiss"]
[EventCountry "LAT"]
[SourceTitle "playchess.com"]
[Source "ChessBase"]
[SourceQuality "1"]
[TimeControl "5400+30"]

1. d4 {[%emt 0:00:00]} Nf6 {[%emt 0:00:00]} 2. Nf3 {[%emt 0:00:00]} e6 {[%emt 0:00:06]} 3. c4 {[%emt 0:00:46]} d5 {[%emt 0:00:31]} 4. Nc3 {[%emt 0:00:16]} c6 {[%emt 0:07:24]} 5. e3 {[%emt 0:01:11]} Nbd7 {[%emt 0:00:11]} 6. Bd3 {[%emt 0:00:28]} dxc4 {[%emt 0:02:47]} 7. Bxc4 {[%emt 0:00:12]} b5 {[%emt 0:00:02]} 8. Bd3 {[%emt 0:00:08]} Bd6 {[%emt 0:06:13]} 9. a4 {[%emt 0:04:29]} b4 {[%emt 0:04:22]} 10. Ne4 {[%emt 0:00:46]} Nxe4 {[%emt 0:12:57]} 11. Bxe4 {[%emt 0:00:44]} Bb7 {[%emt 0:01:31]} 12. Nd2 {[%emt 0:02:39]} Qc7 {[%emt 0:11:13]} 13. Nc4 {[%emt 0:07:47]} Be7 {[%emt 0:07:08]} 14. O-O {[%emt 0:02:31]} Rd8 {[%emt 0:07:09]} 15. b3 {[%emt 0:06:49]} c5 {[%emt 0:05:28]} 16. Bxb7 {[%emt 0:00:21]} Qxb7 {[%emt 0:00:02]} 17. Bb2 {[%emt 0:00:16]} O-O {[%emt 0:02:04]} 18. Qf3 {[%emt 0:04:03]} Qxf3 {[%emt 0:04:35]} 19. gxf3 {[%emt 0:00:02]} Bf6 {[%emt 0:01:46]} 20. Ne5 {[%emt 0:14:05]} cxd4 {[%emt 0:08:50]} 21. Nc6 {[%emt 0:00:41]} Rc8 {[%emt 0:01:39]} 22. Nxd4 {[%emt 0:02:36]} Nc5 {[%emt 0:03:37]} 23. Rab1 {[%emt 0:02:46]} e5 {[%emt 0:01:03]} 24. Nf5 {[%emt 0:00:07]} Rcd8 {[%emt 0:04:06]} 25. f4 {[%emt 0:02:28]} exf4 {[%emt 0:00:55]} 26. Bxf6 {[%emt 0:00:06]} gxf6 {[%emt 0:00:02]} 27. Rfc1 {[%emt 0:05:37]} Ne4 {[%emt 0:00:37]} 28. Rb2 {[%emt 0:01:39]} Nc3 {[%emt 0:01:40]} 29. Kg2 {[%emt 0:01:17]} Rfe8 {[%emt 0:00:41]} 30. Kf3 {[%emt 0:01:45]} Re5 {[%emt 0:02:44]} 31. Rg1+ {[%emt 0:07:58]} Kf8 {[%emt 0:00:17]} 32. Nh6 {[%emt 0:00:18]} Rh5 {[%emt 0:01:08]} 33. Rg8+ {[%emt 0:00:30]} Ke7 {[%emt 0:00:00]} 34. Rxd8 {[%emt 0:00:09]} Kxd8 {[%emt 0:01:06]} 35. Ng4 {[%emt 0:07:52]} fxe3 36. Nxe3 {[%emt 0:04:20]} Rxh2 {[%emt 0:01:51]} 37. Rd2+ {[%emt 0:00:25]} Ke7 {[%emt 0:01:28]} 38. Nf5+ {[%emt 0:02:39]} Ke6 {[%emt 0:00:57]} 39. Nd4+ {[%emt 0:00:06]} Kd5 {[%emt 0:00:15]} 40. Nb5+ {[%emt 0:01:10]} Kc5 {[%emt 0:00:05]} 41. Nxa7 {[%emt 0:00:08]} Rh1 {[%emt 0:01:01]} 42. Rd8 {[%emt 0:09:56]} Rb1 {[%emt 0:00:19]} 43. Rc8+ {[%emt 0:00:10]} Kb6 {[%emt 0:00:29]} 44. Nb5 {[%emt 0:00:10]} Rxb3 {[%emt 0:00:35]} 45. Nd4 {[%emt 0:00:30]} Rb1 {[%emt 0:01:02]} 46. Ke3 {[%emt 0:01:22]} Nxa4 {[%emt 0:00:30]} 47. Rc6+ {[%emt 0:02:36]} Ka5 {[%emt 0:00:02]} 48. Rxf6 {[%emt 0:00:07]} b3 {[%emt 0:00:11]} 49. Rf5+ {[%emt 0:02:24]} Kb4 {[%emt 0:00:41]} 50. Nxb3 {[%emt 0:03:35]} Rxb3+ {[%emt 0:00:30]} 51. Kf4 {[%emt 0:00:07]} Nc5 {[%emt 0:00:59]} 52. Rxf7 {[%emt 0:00:07]} Rh3 {[%emt 0:00:02]} 53. Kg4 {[%emt 0:01:22]} Rh1 {[%emt 0:00:05]} 54. f4 {[%emt 0:00:18]} Kc4 {[%emt 0:00:27]} 55. f5 {[%emt 0:00:50]} Kd5 {[%emt 0:00:27]} 56. f6 {[%emt 0:00:55]} Ke6 {[%emt 0:01:28]} 57. Rc7 {[%emt 0:00:26]} Nd7 {[%emt 0:00:38]} 58. Rc6+ {[%emt 0:00:06]} Ke5 {[%emt 0:00:25]} 59. f7 {[%emt 0:00:29]} Rf1 {[%emt 0:00:02]} 60. Kg5 {[%emt 0:00:09]} Rxf7 {[%emt 0:00:12]} 61. Rc7 {[%emt 0:00:05]} Ke6 {[%emt 0:00:58]} 62. Rc6+ {[%emt 0:00:17]} Ke7 {[%emt 0:00:13]} 63. Rc1 {[%emt 0:00:15]} Kf8 {[%emt 0:00:21]} 64. Kh6 {[%emt 0:00:10]} Kg8 {[%emt 0:00:23]} 65. Rc8+ {[%emt 0:00:29]} Nf8 {[%emt 0:00:06]} 66. Rc6 {[%emt 0:00:11]} Rg7 {[%emt 0:00:07]} 67. Rc8 {[%emt 0:00:18]} Rg6+ {[%emt 0:00:11]} 68. Kh5 {[%emt 0:00:04]} Rd6 {[%emt 0:00:28]} 69. Ra8 {[%emt 0:00:19]} Kg7 {[%emt 0:00:18]} 70. Ra7+ {[%emt 0:00:08]} Nd7 {[%emt 0:00:31]} 71. Kg5 {[%emt 0:00:26]} Rd5+ {[%emt 0:00:10]} 72. Kf4 {[%emt 0:00:04]} Kg6 {[%emt 0:00:13]} 73. Ra1 {[%emt 0:00:08]} Rf5+ {[%emt 0:00:14]} 74. Ke4 0-1

[Event "8th RTU Open 2018"]
[Site "Riga"]
[Date "2018.08.11"]
[Round "8"]
[White "Chukavin, Kirill"]
[Black "Miedema, David"]
[Result "0-1"]
[ECO "C05"]
[WhiteElo "2291"]
[BlackElo "2397"]
[Annotator "NA"]
[PlyCount "60"]
[EventDate "2018.08.06"]
[EventType "swiss"]
[EventCountry "LAT"]
[SourceTitle "playchess.com"]
[Source "ChessBase"]
[SourceQuality "1"]
[TimeControl "5400+30"]

1. e4 {[%emt 0:02:16]} e6 {[%emt 0:00:00]} 2. d4 {[%emt 0:00:32]} d5 {[%emt 0:00:00]} 3. Nd2 {[%emt 0:00:17]} Nf6 {[%emt 0:00:39]} 4. e5 {[%emt 0:00:12]} Nfd7 {[%emt 0:00:04]} 5. Bd3 {[%emt 0:00:18]} c5 {[%emt 0:00:07]} 6. c3 {[%emt 0:00:10]} b6 {[%emt 0:00:35]} 7. f4 {[%emt 0:13:53]} Ba6 8. Ndf3 Bxd3 {[%emt 0:10:25]} 9. Qxd3 {[%emt 0:09:07]} Nc6 {[%emt 0:01:52]} 10. Ne2 {[%emt 0:03:26]} g6 {[%emt 0:02:10]} 11. Be3 c4 {[%emt 0:00:28]} 12. Qc2 {[%emt 0:12:49]} b5 {[%emt 0:00:38]} 13. O-O {[%emt 0:08:20]} b4 {[%emt 0:10:15]} 14. g4 {[%emt 0:11:39]} Qb6 {[%emt 0:10:51]} 15. Ng5 {[%emt 0:03:07]} Be7 16. Rf3 {[%emt 0:03:33]} bxc3 {[%emt 0:04:46]} 17. bxc3 {[%emt 0:00:30]} Rb8 {[%emt 0:00:04]} 18. Nxf7 {[%emt 0:14:40]} Kxf7 {[%emt 0:00:05]} 19. f5 {[%emt 0:00:03]} gxf5 {[%emt 0:19:13]} 20. gxf5 {[%emt 0:00:11]} Nf8 {[%emt 0:00:15]} 21. fxe6+ {[%emt 0:05:01]} Ke8 {[%emt 0:00:03]} 22. Qf5 {[%emt 0:00:34]} Ng6 23. Qh5 {[%emt 0:04:42]} Kd8 {[%emt 0:02:56]} 24. Raf1 {[%emt 0:03:39]} Qb2 {[%emt 0:03:30]} 25. Bh6 Rg8 {[%emt 0:02:16]} 26. Kh1 {[%emt 0:01:51]} Qc2 {[%emt 0:01:20]} 27. Ng3 {[%emt 0:01:48]} Rb2 {[%emt 0:01:25]} 28. Qh3 {[%emt 0:00:48]} Nh4 29. Rf7 {[%emt 0:00:32]} Rxg3 {[%emt 0:04:01]} 30. Rxe7 Qe4+ {[%emt 0:00:09]} 0-1

[Event "8th RTU Open 2018"]
[Site "Riga"]
[Date "2018.08.11"]
[Round "8"]
[White "Gurvich, Vitaly"]
[Black "Schekachikhin, Maksim"]
[Result "1-0"]
[ECO "A30"]
[WhiteElo "2272"]
[BlackElo "2392"]
[Annotator "NA"]
[PlyCount "101"]
[EventDate "2018.08.06"]
[EventType "swiss"]
[EventCountry "LAT"]
[SourceTitle "playchess.com"]
[Source "ChessBase"]
[SourceQuality "1"]
[TimeControl "5400+30"]

1. c4 {[%emt 0:01:26]} c5 {[%emt 0:00:17]} 2. Nf3 {[%emt 0:00:17]} Nf6 {[%emt 0:00:12]} 3. Nc3 {[%emt 0:00:06]} e6 {[%emt 0:00:05]} 4. g3 {[%emt 0:00:05]} b6 {[%emt 0:00:04]} 5. Bg2 {[%emt 0:00:04]} Bb7 {[%emt 0:00:05]} 6. O-O {[%emt 0:00:06]} d6 {[%emt 0:01:33]} 7. Re1 {[%emt 0:00:14]} Ne4 {[%emt 0:06:16]} 8. Nxe4 {[%emt 0:03:38]} Bxe4 {[%emt 0:00:08]} 9. d3 {[%emt 0:06:10]} Bb7 {[%emt 0:00:12]} 10. e4 {[%emt 0:08:45]} Nd7 {[%emt 0:03:35]} 11. d4 {[%emt 0:04:44]} cxd4 {[%emt 0:00:07]} 12. Nxd4 {[%emt 0:00:04]} a6 {[%emt 0:02:12]} 13. b3 {[%emt 0:04:23]} Be7 {[%emt 0:04:57]} 14. e5 {[%emt 0:10:39]} Bxg2 {[%emt 0:10:09]} 15. exd6 {[%emt 0:00:36]} Bxd6 {[%emt 0:17:22]} 16. Kxg2 {[%emt 0:14:04]} Qc7 {[%emt 0:08:16]} 17. Nxe6 {[%emt 0:22:21]} fxe6 {[%emt 0:00:39]} 18. Rxe6+ {[%emt 0:00:03]} Be7 {[%emt 0:00:21]} 19. Bg5 {[%emt 0:00:35]} Nf6 {[%emt 0:06:46]} 20. Bxf6 {[%emt 0:01:55]} gxf6 {[%emt 0:03:52]} 21. Qh5+ {[%emt 0:00:19]} Kf8 {[%emt 0:00:22]} 22. Rae1 {[%emt 0:01:44]} Re8 {[%emt 0:11:13]} 23. Rxf6+ {[%emt 0:02:11]} Bxf6 {[%emt 0:00:06]} 24. Rxe8+ {[%emt 0:00:05]} Kg7 {[%emt 0:00:06]} 25. Qg4+ {[%emt 0:00:34]} Kh6 {[%emt 0:02:13]} 26. Re6 {[%emt 0:04:56]} Rf8 {[%emt 0:03:35]} 27. h4 {[%emt 0:03:49]} Qb7+ {[%emt 0:01:06]} 28. f3 {[%emt 0:03:58]} Qg7 {[%emt 0:00:36]} 29. Qf4+ {[%emt 0:01:49]} Kg6 {[%emt 0:00:12]} 30. Qe4+ {[%emt 0:01:12]} Kf7 {[%emt 0:01:08]} 31. Qd5 {[%emt 0:00:13]} Re8 {[%emt 0:05:02]} 32. Rxb6+ {[%emt 0:02:24]} Kf8 {[%emt 0:00:16]} 33. Qf5 {[%emt 0:01:16]} Kf7 {[%emt 0:01:41]} 34. Rxa6 {[%emt 0:01:27]} Re2+ {[%emt 0:01:06]} 35. Kf1 {[%emt 0:00:10]} Re7 {[%emt 0:00:28]} 36. c5 {[%emt 0:00:59]} Qh6 {[%emt 0:00:03]} 37. f4 {[%emt 0:00:21]} Kg7 {[%emt 0:00:31]} 38. b4 {[%emt 0:00:41]} Re1+ {[%emt 0:07:07]} 39. Kg2 {[%emt 0:00:36]} Re7 {[%emt 0:00:11]} 40. b5 {[%emt 0:00:19]} Rf7 {[%emt 0:00:53]} 41. Re6 {[%emt 0:00:41]} Kg8 {[%emt 0:00:57]} 42. c6 {[%emt 0:00:25]} Qf8 {[%emt 0:00:03]} 43. Qc2 {[%emt 0:00:30]} Bd8 {[%emt 0:02:27]} 44. Qe2 {[%emt 0:00:30]} Kg7 {[%emt 0:01:17]} 45. h5 {[%emt 0:00:19]} h6 {[%emt 0:01:44]} 46. Qg4+ {[%emt 0:00:07]} Kh8 {[%emt 0:00:33]} 47. Qg6 {[%emt 0:00:06]} Bg5 {[%emt 0:00:47]} 48. Qe4 {[%emt 0:01:02]} Be7 {[%emt 0:00:29]} 49. c7 {[%emt 0:00:19]} Rg7 {[%emt 0:00:27]} 50. Rxh6+ {[%emt 0:00:13]} Kg8 {[%emt 0:00:01]} 51. Qe6+ {[%emt 0:00:14]} 1-0

[Event "8th RTU Open 2018"]
[Site "Riga"]
[Date "2018.08.11"]
[Round "8"]
[White "Kretainis, Kristaps"]
[Black "Akesson, Ralf"]
[Result "1-0"]
[ECO "B10"]
[WhiteElo "2235"]
[BlackElo "2389"]
[Annotator "NA"]
[PlyCount "87"]
[EventDate "2018.08.06"]
[EventType "swiss"]
[EventCountry "LAT"]
[SourceTitle "playchess.com"]
[Source "ChessBase"]
[SourceQuality "1"]
[TimeControl "5400+30"]

1. e4 {[%emt 0:00:00]} c6 {[%emt 0:04:21]} 2. d3 {[%emt 0:00:00]} d5 {[%emt 0:00:12]} 3. Nd2 {[%emt 0:00:00]} e5 {[%emt 0:00:59]} 4. Ngf3 {[%emt 0:00:03]} Nd7 {[%emt 0:00:35]} 5. g3 {[%emt 0:00:18]} Ngf6 {[%emt 0:00:15]} 6. Bg2 {[%emt 0:00:03]} Bd6 {[%emt 0:00:38]} 7. O-O {[%emt 0:00:05]} O-O {[%emt 0:00:09]} 8. b3 {[%emt 0:04:04]} Re8 {[%emt 0:03:41]} 9. Bb2 {[%emt 0:01:57]} Bc7 {[%emt 0:14:34]} 10. a3 {[%emt 0:07:06]} a5 {[%emt 0:04:54]} 11. b4 {[%emt 0:02:37]} dxe4 {[%emt 0:11:57]} 12. dxe4 {[%emt 0:02:06]} Qe7 {[%emt 0:00:34]} 13. Qb1 {[%emt 0:05:20]} Nb6 {[%emt 0:05:29]} 14. c3 {[%emt 0:12:37]} Na4 {[%emt 0:07:00]} 15. Qc2 {[%emt 0:01:08]} Nxb2 {[%emt 0:03:27]} 16. Qxb2 {[%emt 0:00:02]} h6 {[%emt 0:03:18]} 17. Rfe1 {[%emt 0:01:57]} Be6 {[%emt 0:01:28]} 18. Bf1 {[%emt 0:00:44]} b5 {[%emt 0:12:02]} 19. Nb3 {[%emt 0:03:59]} Bb6 {[%emt 0:04:19]} 20. bxa5 {[%emt 0:03:53]} Ba7 {[%emt 0:03:43]} 21. h3 {[%emt 0:09:34]} Nd7 {[%emt 0:03:15]} 22. Rac1 {[%emt 0:06:54]} Qf6 {[%emt 0:01:43]} 23. Nbd2 {[%emt 0:01:36]} Nc5 {[%emt 0:01:48]} 24. c4 {[%emt 0:05:04]} Bxh3 {[%emt 0:07:37]} 25. Bxh3 {[%emt 0:00:06]} Nd3 {[%emt 0:00:10]} 26. Qb1 {[%emt 0:00:05]} Bxf2+ {[%emt 0:02:54]} 27. Kg2 {[%emt 0:00:07]} Qg6 {[%emt 0:01:09]} 28. Nf1 {[%emt 0:00:15]} Rad8 {[%emt 0:00:30]} 29. Bf5 {[%emt 0:01:20]} Qf6 {[%emt 0:00:40]} 30. Red1 {[%emt 0:03:45]} Nxc1 {[%emt 0:00:18]} 31. Qxc1 {[%emt 0:00:14]} Ba7 {[%emt 0:00:25]} 32. cxb5 {[%emt 0:01:12]} cxb5 {[%emt 0:00:08]} 33. Bd7 {[%emt 0:05:02]} Rf8 {[%emt 0:00:21]} 34. Bxb5 {[%emt 0:02:04]} Qe7 {[%emt 0:00:46]} 35. Rxd8 {[%emt 0:02:32]} Qxd8 {[%emt 0:00:44]} 36. Qc3 {[%emt 0:00:15]} Qd1 {[%emt 0:00:41]} 37. Qd2 {[%emt 0:03:47]} Qa1 {[%emt 0:00:59]} 38. Bc4 {[%emt 0:00:25]} Qxa3 {[%emt 0:00:28]} 39. Nxe5 {[%emt 0:00:18]} Qc5 {[%emt 0:00:44]} 40. Qf4 {[%emt 0:02:40]} Qg1+ {[%emt 0:00:29]} 41. Kh3 {[%emt 0:00:07]} Bb8 {[%emt 0:00:33]} 42. Bxf7+ {[%emt 0:00:28]} Rxf7 {[%emt 0:00:32]} 43. Qxf7+ {[%emt 0:00:05]} Kh7 {[%emt 0:00:09]} 44. Nd7 {[%emt 0:03:37]} 1-0

[Event "8th RTU Open 2018"]
[Site "Riga"]
[Date "2018.08.11"]
[Round "8"]
[White "Juknis, Paulius"]
[Black "Hansen, Mads"]
[Result "0-1"]
[ECO "D00"]
[WhiteElo "2231"]
[BlackElo "2387"]
[Annotator "NA"]
[PlyCount "68"]
[EventDate "2018.08.06"]
[EventType "swiss"]
[EventCountry "LAT"]
[SourceTitle "playchess.com"]
[Source "ChessBase"]
[SourceQuality "1"]
[TimeControl "5400+30"]

1. d4 {[%emt 0:00:00]} d5 {[%emt 0:00:00]} 2. Bf4 {[%emt 0:00:00]} Nf6 {[%emt 0:00:00]} 3. e3 {[%emt 0:00:00]} c5 {[%emt 0:00:01]} 4. c3 {[%emt 0:00:00]} Nc6 {[%emt 0:00:06]} 5. Nd2 {[%emt 0:00:04]} e6 {[%emt 0:00:10]} 6. Ngf3 {[%emt 0:00:10]} Bd6 {[%emt 0:00:07]} 7. Bg3 {[%emt 0:00:07]} O-O {[%emt 0:00:57]} 8. Bd3 {[%emt 0:00:07]} b6 {[%emt 0:01:15]} 9. e4 {[%emt 0:00:12]} dxe4 {[%emt 0:04:16]} 10. Nxe4 {[%emt 0:00:17]} Be7 {[%emt 0:03:04]} 11. dxc5 {[%emt 0:12:44]} bxc5 {[%emt 0:00:13]} 12. Nxf6+ {[%emt 0:02:22]} Bxf6 {[%emt 0:00:18]} 13. Qc2 {[%emt 0:05:32]} h6 {[%emt 0:01:34]} 14. O-O {[%emt 0:04:33]} Bb7 {[%emt 0:02:25]} 15. Rfe1 {[%emt 0:03:15]} Qb6 {[%emt 0:03:29]} 16. Nd2 {[%emt 0:03:14]} Na5 {[%emt 0:01:34]} 17. Be4 {[%emt 0:18:34]} Bd5 {[%emt 0:03:52]} 18. b3 {[%emt 0:01:47]} Rfd8 {[%emt 0:06:02]} 19. Rad1 {[%emt 0:00:19]} Nc6 {[%emt 0:01:08]} 20. Bxd5 {[%emt 0:07:19]} exd5 {[%emt 0:00:31]} 21. c4 {[%emt 0:02:41]} Nb4 {[%emt 0:07:09]} 22. Qb1 {[%emt 0:00:53]} Qa6 {[%emt 0:02:18]} 23. a4 {[%emt 0:00:46]} Bc3 {[%emt 0:03:23]} 24. Re2 {[%emt 0:04:57]} Bxd2 {[%emt 0:01:35]} 25. Rexd2 {[%emt 0:00:09]} d4 {[%emt 0:00:04]} 26. Re2 {[%emt 0:06:12]} Re8 {[%emt 0:01:03]} 27. Rxe8+ {[%emt 0:04:05]} Rxe8 {[%emt 0:00:03]} 28. Bf4 {[%emt 0:00:21]} Qf6 {[%emt 0:01:32]} 29. Bg3 {[%emt 0:04:17]} d3 {[%emt 0:01:28]} 30. h3 {[%emt 0:01:32]} Qc3 {[%emt 0:03:33]} 31. Bf4 {[%emt 0:01:09]} Re2 {[%emt 0:03:17]} 32. Kf1 {[%emt 0:00:39]} Nc2 {[%emt 0:01:42]} 33. h4 {[%emt 0:05:02]} Qd4 {[%emt 0:04:52]} 34. Bg3 {[%emt 0:00:36]} Qe4 {[%emt 0:00:15]} 0-1

[Event "8th RTU Open 2018"]
[Site "Riga"]
[Date "2018.08.11"]
[Round "8"]
[White "Priyanka, Nutakki"]
[Black "Chekletsov, Ilya"]
[Result "1-0"]
[ECO "B53"]
[WhiteElo "2212"]
[BlackElo "2379"]
[Annotator "NA"]
[PlyCount "67"]
[EventDate "2018.08.06"]
[EventType "swiss"]
[EventCountry "LAT"]
[SourceTitle "playchess.com"]
[Source "ChessBase"]
[SourceQuality "1"]
[TimeControl "5400+30"]

1. e4 c5 2. Nf3 d6 3. d4 cxd4 4. Qxd4 Nc6 5. Bb5 Bd7 6. Bxc6 Bxc6 7. Nc3 h6 8. Qd3 e5 9. Nd2 Nf6 10. Nc4 Be7 11. Ne3 g6 12. O-O O-O 13. a4 Rc8 14. Ncd5 Bxd5 15. Nxd5 Kg7 16. c3 Nxd5 17. Qxd5 Qc7 18. Be3 Bg5 19. f4 exf4 20. Bxa7 Kh7 21. Bd4 Qe7 22. e5 Rcd8 23. exd6 Rxd6 24. Qe5 Qxe5 25. Bxe5 Rd2 26. Rf2 f3 27. Rxd2 Bxd2 28. gxf3 Re8 29. Bg3 f5 30. Rd1 Be3+ 31. Bf2 f4 32. Rd7+ Kg8 33. Bxe3 fxe3 34. Kf1 1-0